fUSD/lending_fUSD_20251206
["ID","MTS","AMOUNT","RATE_DAILY","PERIOD"]
[396485616,1764989439134,-4000.0,0.00016771,2]
[396485617,1764989439144,-151.0,0.00016771,2]
[396485618,1764989439153,-4000.0,0.00016771,2]
[396485619,1764989439163,-4000.0,0.00016771,2]
[396485620,1764989439172,-4000.0,0.00016771,2]
[396485621,1764989439590,-4000.0,0.00016771,2]
[396485622,1764989439600,-4000.0,0.00016771,2]
[396485623,1764989439609,-4000.0,0.00016771,2]
[396485624,1764989439619,-4079.50880291,0.00016771,2]
[396485625,1764989439628,-1000.0,0.00016777,2]
[396485626,1764989439637,-151.0,0.00016777,2]
[396485627,1764989439647,-719.04747942,0.00016777,2]
[396485628,1764989439656,-548.42247626,0.0001678,2]
[396485629,1764989439666,-500.0,0.0001678,2]
[396485630,1764989439675,-500.0,0.0001678,2]
[396485631,1764989439684,-511.20393764,0.0001678,2]
[396485632,1764989439693,-500.0,0.0001678,2]
[396485633,1764989439702,-500.0,0.0001678,2]
[396485634,1764989439711,-500.0,0.0001678,2]
[396485635,1764989439721,-500.0,0.0001678,2]
[396485636,1764989439731,-506.02168929,0.0001678,2]
[396485637,1764989439740,-161.813,0.00016781,2]
[396485638,1764989439750,-2574.948,0.00016781,2]
[396485639,1764989439759,-1024.54189436,0.00016781,2]
[396485640,1764989439769,-151.0,0.00016781,2]
[396485641,1764989439778,-178.185669,0.00016781,2]
[396485642,1764989439787,-243.223951,0.00016781,2]
[396485643,1764989439797,-243.223951,0.00016781,2]
[396485644,1764989439806,-243.223951,0.00016781,2]
[396485645,1764989439815,-243.223951,0.00016781,2]
[396485646,1764989439825,-243.223951,0.00016781,2]
[396485647,1764989439835,-243.223951,0.00016781,2]
[396485648,1764989439844,-243.223951,0.00016781,2]
[396485649,1764989439853,-1439.48709833,0.00016781,2]
[396485650,1764989439862,-243.223951,0.00016781,2]
[396485651,1764989439871,-303966.74663525,0.00016781,2]
[396485652,1764989439885,-4557.24987909,0.00016781,2]
[396485653,1764989439928,-2452.18674416,0.00016781,2]
[396485654,1764989440224,-20889.84207598,0.00016781,2]
[396485661,1764989445742,-304.76784012,0.00016781,2]
[396485662,1764989561667,-642.37841561,0.00016085,2]
[396485663,1764989563973,-218.54231755,0.00016085,2]
[396485664,1764989567407,-337.33358921,0.00016085,2]
[396485665,1764989570614,-177.63303833,0.00016085,2]
[396485666,1764989574456,-151.46746794,0.00016085,2]
[396485667,1764989577839,-166.27444294,0.00016085,2]
[396485668,1764989579382,-223.11589934,0.00016085,2]
[396485670,1764989749949,150.0,0.00015876,2]
[396485676,1764989815876,1460.07,0.00015867,2]
[396485677,1764989878050,600.88,0.00013699,2]
[396485687,1764990196661,2751.0,0.0001581,2]
[396485699,1764990326903,-197.00144261,0.00016085,2]
[396485700,1764990331060,-223.87867379,0.00016085,2]
[396485703,1764990357404,200.0,0.00015793,2]
[396485706,1764990411227,166.66,0.0001499,2]
[396485707,1764990411267,166.66,0.00015306,2]
[396485708,1764990411324,166.66,0.00015621,2]
[396485709,1764990411597,166.66,0.00015937,2]
[396485710,1764990412154,-179.1198836,0.00016085,2]
[396485711,1764990463033,-333.0221598,0.00016085,2]
[396485712,1764990464127,1450.07,0.00015729,2]
[396485713,1764990467119,-276.85341313,0.00016085,2]
[396485714,1764990470338,-431.46689418,0.00016085,2]
[396485715,1764990473793,-201.66722386,0.00016085,2]
[396485716,1764990475869,-166.45546187,0.00016085,2]
[396485717,1764990477900,-49.26967624,0.00016085,2]
[396485718,1764990477920,-307.98806503,0.00016085,2]
[396485719,1764990481285,-1.20861876,0.00016085,2]
[396485720,1764990481306,-165.09064693,0.00016085,2]
[396485740,1764990626676,-284.21660658,0.00016085,2]
[396485747,1764990631875,-0.78339342,0.00016085,2]
[396485748,1764990631884,-578.20924308,0.00016108,2]
[396485749,1764990631894,-290.64567477,0.00016108,2]
[396485750,1764990631903,-1000.0,0.00016198,3]
[396485751,1764990631911,-300.0,0.00016199,2]
[396485752,1764990631921,-300.0,0.00016199,2]
[396485753,1764990631931,-1200.0,0.00016199,2]
[396485754,1764990631940,-150.0,0.000162,2]
[396485755,1764990631950,-150.0,0.000162,2]
[396485756,1764990631959,-150.0,0.000162,2]
[396485757,1764990631968,-150.0,0.000162,2]
[396485758,1764990631977,-151.46746794,0.000162,2]
[396485759,1764990631987,-150.0,0.000162,2]
[396485760,1764990631995,-150.0,0.000162,2]
[396485761,1764990632004,-150.0,0.000162,2]
[396485762,1764990632014,-150.0,0.000162,2]
[396485763,1764990632023,-150.0,0.000162,2]
[396485764,1764990632032,-166.66,0.00016253,2]
[396485765,1764990632041,-166.7,0.00016322,2]
[396485766,1764990632050,-174.5,0.00016438,2]
[396485767,1764990632059,-250.4975375,0.00016479,2]
[396485768,1764990632068,-166.66,0.00016568,2]
[396485769,1764990632077,-1974.59050839,0.00016581,2]
[396485770,1764990632088,-500.00871216,0.00016581,2]
[396485771,1764990632103,-25.40077945,0.00016581,2]
[396485772,1764990632112,-1000.0,0.00016581,2]
[396485773,1764990632122,-214.0,0.00016645,2]
[396485774,1764990632131,-230.0,0.00016656,2]
[396485775,1764990632140,-596.08143133,0.00016666,2]
[396485776,1764990632149,-228.14865671,0.00016666,2]
[396485777,1764990632159,-10911.06547772,0.00016666,2]
[396485779,1764990632168,-550.0,0.00016669,2]
[396485781,1764990632177,-277.35679052,0.0001667,2]
[396485783,1764990632187,-1000.0,0.0001667,2]
[396485785,1764990632195,-152.34332871,0.0001667,2]
[396485787,1764990632204,-300.0,0.0001667,2]
[396485789,1764990632214,-695.21896712,0.0001667,2]
[396485791,1764990632223,-500.0,0.00016671,2]
[396485793,1764990632232,-500.0,0.00016671,2]
[396485794,1764990632242,-510.56032477,0.00016671,2]
[396485796,1764990632251,-223.38581799,0.00016671,2]
[396485798,1764990632260,-574.12855637,0.00016671,2]
[396485800,1764990632270,-1000.0,0.00016671,2]
[396485802,1764990632279,-1000.0,0.00016671,2]
[396485804,1764990632288,-1000.0,0.00016671,2]
[396485806,1764990632298,-1000.0,0.00016671,2]
[396485808,1764990632307,-1000.0,0.00016671,2]
[396485809,1764990632316,-1000.0,0.00016671,2]
[396485811,1764990632326,-1000.0,0.00016671,2]
[396485813,1764990632335,-1000.0,0.00016671,2]
[396485815,1764990632344,-1000.0,0.00016671,2]
[396485817,1764990632354,-1000.0,0.00016671,2]
[396485819,1764990632363,-1000.0,0.00016671,2]
[396485821,1764990632372,-500.0,0.00016671,2]
[396485823,1764990632382,-386.5884003,0.00016671,2]
[396485825,1764990632391,-153.04590278,0.00016671,2]
[396485827,1764990632400,-151.0,0.00016671,2]
[396485829,1764990632409,-500.0,0.00016671,2]
[396485830,1764990632419,-500.0,0.00016671,2]
[396485832,1764990632428,-151.0,0.00016671,2]
[396485834,1764990632438,-500.0,0.00016671,2]
[396485836,1764990632447,-151.0,0.00016671,2]
[396485838,1764990632456,-500.0,0.00016671,2]
[396485840,1764990632469,-151.0,0.00016671,2]
[396485842,1764990632478,-500.0,0.00016671,2]
[396485843,1764990632488,-151.0,0.00016671,2]
[396485844,1764990632497,-500.0,0.00016671,2]
[396485845,1764990632507,-151.0,0.00016671,2]
[396485846,1764990632516,-500.0,0.00016671,2]
[396485847,1764990632525,-151.0,0.00016671,2]
[396485848,1764990632536,-500.0,0.00016671,2]
[396485849,1764990632546,-151.0,0.00016671,2]
[396485850,1764990632556,-500.0,0.00016671,2]
[396485851,1764990632565,-500.0,0.00016671,2]
[396485852,1764990632575,-278.64773545,0.00016671,2]
[396485853,1764990632585,-500.0,0.00016671,2]
[396485854,1764990632594,-500.0,0.00016671,2]
[396485855,1764990632604,-500.0,0.00016671,2]
[396485856,1764990632613,-500.0,0.00016671,2]
[396485857,1764990632623,-500.0,0.00016671,2]
[396485858,1764990632633,-500.0,0.00016671,2]
[396485859,1764990632642,-500.0,0.00016671,2]
[396485860,1764990632651,-500.0,0.00016671,2]
[396485861,1764990632661,-500.0,0.00016671,2]
[396485862,1764990632670,-500.0,0.00016671,2]
[396485863,1764990632680,-516.0256802,0.00016671,2]
[396485864,1764990632689,-1004.51238171,0.00016674,2]
[396485865,1764990632698,-279.82109422,0.00016675,2]
[396485866,1764990632708,-155.67779517,0.00016675,2]
[396485867,1764990632718,-647.70395949,0.00016675,2]
[396485868,1764990632727,-1000.0,0.00016676,2]
[396485869,1764990632736,-150.99,0.00016676,2]
[396485870,1764990632746,-510.84,0.00016676,2]
[396485871,1764990632755,-7121.32441682,0.00016676,2]
[396485872,1764990632767,-672.80486097,0.00016676,2]
[396485873,1764990632778,-271.91129923,0.00016676,2]
[396485874,1764990632789,-1326.4511873,0.00016676,2]
[396485875,1764990632800,-54746.00823568,0.00016676,2]
[396485876,1764990632810,-150.99,0.00016676,2]
[396485877,1764990632819,-291.29,0.00016676,5]
[396485878,1764990632829,-24107.87,0.00016676,2]
[396485879,1764990632838,-299.99,0.00016676,4]
[396485880,1764990632847,-9999.99,0.00016676,2]
[396485881,1764990632856,-308.49,0.00016676,2]
[396485882,1764990632865,-9999.99,0.00016676,2]
[396485883,1764990632874,-511.19,0.00016676,2]
[396485884,1764990632884,-999.99,0.00016676,2]
[396485885,1764990632893,-499.99,0.00016676,2]
[396485886,1764990632902,-1119.62,0.00016676,2]
[396485887,1764990632911,-933.82051953,0.00016676,2]
[396485888,1764990632921,-161.813,0.0001668,2]
[396485889,1764990632930,-2210.436,0.0001668,2]
[396485890,1764990632938,-500.0,0.0001668,2]
[396485891,1764990632947,-500.0,0.0001668,2]
[396485892,1764990632956,-500.0,0.0001668,2]
[396485893,1764990632965,-500.0,0.0001668,2]
[396485894,1764990632974,-500.0,0.0001668,2]
[396485895,1764990632983,-280.83663909,0.0001668,2]
[396485896,1764990632992,-500.0,0.0001668,2]
[396485897,1764990633001,-500.0,0.0001668,2]
[396485898,1764990633011,-500.0,0.0001668,2]
[396485899,1764990633022,-444.88845389,0.0001668,2]
[396485900,1764990633032,-504.11544454,0.0001668,2]
[396485901,1764990633041,-531.79610459,0.0001668,2]
[396485902,1764990633050,-165.336244,0.00016681,2]
[396485903,1764990633060,-151.0,0.00016681,2]
[396485904,1764990633251,-151.0,0.00016681,2]
[396485905,1764990633310,-151.0,0.00016681,2]
[396485906,1764990633321,-10047.4484,0.00016681,2]
[396485907,1764990633330,-9091.4521,0.00016681,2]
[396485908,1764990633339,-86927.52810368,0.00016681,2]
[396485909,1764990633351,-504.83378329,0.00016681,2]
[396485910,1764990633373,-571.98594839,0.00016681,2]
[396485911,1764990633384,-1339.14935823,0.00016681,2]
[396485912,1764990633395,-23897.69460938,0.00016681,2]
[396485914,1764990638177,-13874.2743622,0.00016681,2]
[396485915,1764990638188,-821.0,0.00016681,2]
[396486034,1764990640075,-617.22863769,0.00016681,2]
[396486035,1764990640087,-12252.370764,0.00016681,2]
[396486036,1764990640098,-7455.75367996,0.00016681,2]
[396486037,1764990640108,-375.9693,0.00016681,2]
[396486038,1764990640183,-4355.85,0.00016681,2]
[396486039,1764990640194,-5406.50649121,0.00016681,2]
[396486046,1764990642979,-302.05042645,0.00016681,2]
[396486048,1764990643352,-25981.31607109,0.00016681,2]
[396486052,1764990645928,-1008.24074895,0.00016681,2]
[396486053,1764990646039,-7727.16891905,0.00016681,2]
[396486054,1764990646143,-15193.26859127,0.00016681,2]
[396486062,1764990741480,200.0,0.00015872,2]
[396486077,1764990884119,3060.0,0.00022,30]
[396486078,1764990939173,1799.57,0.00015862,2]
[396486092,1764991082943,202.48,0.00015838,2]
[396486097,1764991120193,519.3,0.00015834,2]
[396486098,1764991120216,1333.12,0.00015834,2]
[396486112,1764991206266,5064.4,0.00022,30]
[396486133,1764991316247,250.0,0.00015821,2]
[396486155,1764991494521,1500.0,0.0001572,2]
[396486166,1764991529018,191.19,7.855e-05,2]
[396486167,1764991529242,191.19,8.268e-05,2]
[396486168,1764991529455,191.19,8.682e-05,2]
[396486169,1764991529654,191.19,9.095e-05,2]
[396486170,1764991529854,191.19,9.508e-05,2]
[396486171,1764991530057,191.19,9.922e-05,2]
[396486172,1764991530471,191.19,0.00010335,2]
[396486173,1764991530774,191.19,0.00010749,2]
[396486174,1764991530980,191.19,0.00011162,2]
[396486175,1764991531831,191.19,0.00011575,2]
[396486176,1764991532323,191.19,0.00011989,2]
[396486177,1764991532376,191.19,0.00012402,2]
[396486178,1764991532434,191.19,0.00012816,2]
[396486179,1764991532501,191.19,0.00013229,2]
[396486180,1764991532600,191.19,0.00013642,2]
[396486181,1764991532701,191.19,0.00014056,2]
[396486182,1764991532902,36.34282621,0.00014469,2]
[396486183,1764991532928,154.84717379,0.00014469,2]
[396486184,1764991533100,191.19,0.00014883,2]
[396486185,1764991533317,191.19,0.00015296,2]
[396486186,1764991533525,191.19,0.00015709,2]
[396486193,1764991595919,1000.0,0.00015706,2]
[396486218,1764991714672,2224.71245752,0.00015807,2]
[396486219,1764991721781,-322.13409081,0.00016,4]
[396486220,1764991724867,-231.61144897,0.00016,4]
[396486221,1764991726448,-232.68572867,0.00016,4]
[396486222,1764991729812,-158.64459208,0.00016,4]
[396486223,1764991733111,-210.93645196,0.00016,4]
[396486224,1764991735273,-169.92881942,0.00016,4]
[396486225,1764991737949,-240.39871948,0.00016,4]
[396486226,1764991739466,-485.64954908,0.00016,4]
[396486227,1764991740988,-250.04532576,0.00016,4]
[396486228,1764991741233,300.0,0.00015999,2]
[396486229,1764991742719,5253.073471,0.0001592,2]
[396486230,1764991743489,-243.16233064,0.00016,4]
[396486232,1764991745103,-397.17306172,0.00016,4]
[396486233,1764991747932,-204.3270552,0.00016,4]
[396486234,1764991750626,-161.32000017,0.00016,4]
[396486238,1764991755040,-157.90268983,0.00016,4]
[396486246,1764991757209,-168.79,0.00016,4]
[396486253,1764991759396,-237.93196114,0.00016,4]
[396486254,1764991763650,-212.56479553,0.00016,4]
[396486255,1764991765104,-181.19692084,0.00016,4]
[396486256,1764991767828,-540.56864841,0.00016,4]
[396486257,1764991769408,-204.60499598,0.00016,4]
[396486258,1764991771610,-221.24149237,0.00016,4]
[396486259,1764991774068,-232.63401562,0.00016,4]
[396486260,1764991775908,-177.27,0.00016,4]
[396486261,1764991778649,-246.88643133,0.00016,4]
[396486262,1764991780804,-409.40194065,0.00016,4]
[396486263,1764991783598,-472.20225941,0.00016,4]
[396486264,1764991786869,-316.72671855,0.00016,4]
[396486265,1764991789389,-192.32018216,0.00016,4]
[396486266,1764991792591,-396.07028631,0.00016,4]
[396486267,1764991795445,-242.06209982,0.00016,4]
[396486268,1764991799876,-171.08071791,0.00016,4]
[396486269,1764991801206,300.0,0.00015999,2]
[396486270,1764991801244,922.22407148,0.00015999,2]
[396486271,1764991801269,277.77592852,0.00015999,2]
[396486272,1764991801303,300.0,0.00015999,2]
[396486273,1764991801431,-168.61783143,0.00016,4]
[396486274,1764991803072,-308.28539697,0.00016,4]
[396486275,1764991805127,-242.71582632,0.00016,4]
[396486276,1764991808698,-519.54975835,0.00016,4]
[396486277,1764991810188,-336.60224428,0.00016,4]
[396486278,1764991814411,-320.23651117,0.00016,4]
[396486279,1764991816456,-192.32018233,0.00016,4]
[396486280,1764991818212,-530.80113346,0.00016,4]
[396486283,1764991820334,-182.73267266,0.00016,4]
[396486288,1764991821870,-527.57765053,0.00016,4]
[396486293,1764991823442,-303.55737173,0.00016,4]
[396486296,1764991824956,-256.92243837,0.00016,4]
[396486301,1764991827621,-166.66,0.00016,4]
[396486302,1764991829175,-456.23748779,0.00016,4]
[396486311,1764991832017,-222.32551363,0.00016,4]
[396486323,1764991832152,-19815.51330371,0.00016,4]
[396486324,1764991832163,-1463.95227889,0.00016,4]
[396486325,1764991832173,-315.88349156,0.00016097,2]
[396486326,1764991832182,-1000.0,0.00016197,3]
[396486327,1764991832191,-268.79127166,0.000162,2]
[396486328,1764991832200,-150.0,0.000162,2]
[396486329,1764991832209,-150.0,0.000162,2]
[396486330,1764991832218,-150.0,0.000162,2]
[396486331,1764991832227,-150.0,0.000162,2]
[396486332,1764991832236,-150.0,0.000162,2]
[396486333,1764991832245,-150.0,0.000162,2]
[396486334,1764991832255,-150.0,0.000162,2]
[396486335,1764991832263,-150.0,0.000162,2]
[396486336,1764991832272,-286.0,0.000162,2]
[396486337,1764991832281,-578.20924308,0.00016438,2]
[396486338,1764991832290,-4856.20870403,0.00016438,2]
[396486369,1764991838163,-997.39129597,0.00016438,2]
[396486370,1764991838175,-2500.0,0.00016476,2]
[396486371,1764991838185,-161.78245403,0.00016476,2]
[396486372,1764991838194,-4386.72311825,0.00016476,2]
[396486373,1764991838205,-4336.11221735,0.00016476,2]
[396486374,1764991838271,-435.0150005,0.00016476,2]
[396486375,1764991838326,-271.6014817,0.00016476,2]
[396486462,1764991840193,-1056.48922209,0.00016476,2]
[396486463,1764991840249,-670.75705136,0.00016476,2]
[396486464,1764991840260,-3671.39135345,0.00016476,2]
[396486465,1764991840270,-164.13,0.00016566,2]
[396486466,1764991840279,-1000.0,0.00016566,2]
[396486467,1764991840288,-644.00724658,0.00016566,2]
[396486468,1764991840313,-355.99275342,0.00016566,2]
[396486469,1764991840322,-503.82782063,0.00016566,2]
[396486470,1764991840332,-1148.19232404,0.00016566,2]
[396486471,1764991840343,-1000.0,0.00016566,2]
[396486472,1764991840353,-151.0,0.00016566,2]
[396486473,1764991840363,-2000.0,0.00016566,2]
[396486474,1764991840374,-2000.0,0.00016566,2]
[396486475,1764991840386,-2000.0,0.00016566,2]
[396486476,1764991840395,-2000.0,0.00016566,2]
[396486477,1764991840405,-2000.0,0.00016566,2]
[396486478,1764991840415,-2000.0,0.00016566,2]
[396486479,1764991840425,-2000.0,0.00016566,2]
[396486480,1764991840434,-2000.0,0.00016566,2]
[396486481,1764991840444,-2000.0,0.00016566,2]
[396486482,1764991840454,-277.35679052,0.00016566,2]
[396486483,1764991840465,-300.0,0.00016566,2]
[396486484,1764991840474,-152.29495754,0.00016575,2]
[396486485,1764991840483,-500.0,0.00016575,2]
[396486486,1764991840492,-299.99,0.00016575,4]
[396486487,1764991840502,-9999.99,0.00016575,2]
[396486488,1764991840511,-150.99,0.00016575,2]
[396486489,1764991840520,-6163.06,0.00016575,2]
[396486490,1764991840529,-3054.96,0.00016575,2]
[396486491,1764991840539,-71800.85503712,0.00016576,2]
[396486492,1764991840550,-46565.92232909,0.00016576,2]
[396486493,1764991840589,-2261.88103584,0.00016576,2]
[396486494,1764991840617,-841.0,0.00016576,2]
[396486495,1764991840630,-561.69782174,0.00016576,2]
[396486497,1764991840642,-1087.8115798,0.00016576,2]
[396486557,1764991841306,-1.7e-07,0.00016576,2]
[396486558,1764991841317,-2859.88288406,0.00016576,2]
[396486559,1764991843186,-842.04394202,0.00016576,2]
[396486562,1764991843348,-4547.0,0.00016576,2]
[396486563,1764991843359,-333.44283979,0.00016576,2]
[396486564,1764991843458,-304.42412,0.00016576,2]
[396486565,1764991843470,-176468.59998993,0.00016576,2]
[396486611,1764991846285,-2043.06084097,0.00016576,2]
[396486647,1764992159808,1600.0,0.00015673,2]
[396486654,1764992295482,3251.97,0.00015648,2]
[396486662,1764992488505,-437.64522149,0.00016,5]
[396486663,1764992490795,-300.0,0.00016,5]
[396486664,1764992493457,-219.08649978,0.00016,5]
[396486665,1764992512692,506.0,0.00025,120]
[396486666,1764992513408,150.0,0.00015611,2]
[396486668,1764992804241,570.83,0.00013699,2]
[396486669,1764992812775,2751.0,0.00015595,2]
[396486671,1764992943822,1000.0,0.00015999,3]
[396486676,1764993032297,-1000.0,0.00016196,3]
[396486677,1764993032307,-195.0,0.00016198,2]
[396486678,1764993032316,-286.0,0.00016198,2]
[396486679,1764993032330,-300.0,0.00016199,2]
[396486680,1764993032339,-300.0,0.00016199,2]
[396486681,1764993032349,-1200.0,0.00016199,2]
[396486682,1764993032358,-284.21660658,0.000162,2]
[396486683,1764993032367,-150.0,0.000162,2]
[396486684,1764993032377,-150.0,0.000162,2]
[396486685,1764993032386,-150.0,0.000162,2]
[396486686,1764993032395,-150.0,0.000162,2]
[396486687,1764993032404,-292.01291554,0.000162,2]
[396486688,1764993032413,-201.44584467,0.000162,2]
[396486689,1764993032422,-210.65519813,0.000162,2]
[396486690,1764993032434,-250.0,0.000162,2]
[396486691,1764993032444,-212.6885353,0.000162,2]
[396486692,1764993032455,-15484.42656842,0.00016276,2]
[396486693,1764993032464,-161.78245403,0.00016276,2]
[396486694,1764993032475,-300.0,0.00016287,2]
[396486695,1764993032484,-1200.0,0.00016373,2]
[396486696,1764993032494,-212.6885353,0.00016374,2]
[396486697,1764993032505,-578.20924308,0.00016374,2]
[396486699,1764993032514,-305.0,0.00016374,2]
[396486701,1764993032524,-24057.32300911,0.00016375,2]
[396486703,1764993032534,-40522.20648048,0.00016375,2]
[396486705,1764993032545,-18313.93384261,0.00016375,2]
[396486707,1764993032555,-999.0,0.00016375,2]
[396486713,1764993032601,-315.58304838,0.00016375,2]
[396486716,1764993032612,-684.40695162,0.00016375,2]
[396486730,1764993040378,-25935.14446116,0.00016375,2]
[396486731,1764993040431,-500.0,0.00016375,2]
[396486732,1764993040443,-256.11970815,0.00016375,2]
[396486733,1764993040456,-1846.0586,0.00016375,2]
[396486734,1764993040468,-10078.75992589,0.00016375,2]
[396486735,1764993040540,-264377.69795935,0.00016375,2]
[396486736,1764993040554,-2022.64529575,0.00016375,2]
[396486737,1764993040702,-547.42060492,0.00016375,2]
[396486738,1764993040716,-325.929999,0.00016375,2]
[396486739,1764993040759,-102063.31738876,0.00016375,2]
[396486740,1764993040819,-290.65933611,0.00016375,2]
[396486743,1764993043522,-2469.02239873,0.00016375,2]
[396486744,1764993043533,-13477.888053,0.00016375,2]
[396486745,1764993043546,-20951.78422372,0.00016375,2]
[396486746,1764993043576,-883.59956996,0.00016375,2]
[396486747,1764993043587,-1052.29421122,0.00016375,2]
[396486748,1764993043682,-628.28861067,0.00016375,2]
[396486749,1764993043847,-500.0,0.00016375,2]
[396486753,1764993046458,-490.30512873,0.00016375,2]
[396486754,1764993046471,-786.09959174,0.00016375,2]
[396486755,1764993046615,-759.48108643,0.00016375,2]
[396486757,1764993125780,151.0,0.00015877,2]
[396486758,1764993126428,156.587,0.00015877,2]
[396486759,1764993127502,162.380719,0.00015877,2]
[396486760,1764993128109,151.95850378,0.00015877,2]
[396486761,1764993152344,1013.08630661,0.00022,30]
[396486769,1764993281884,-192.66919776,0.0001627,2]
[396486770,1764993290147,-175.67817167,0.0001627,2]
[396486771,1764993292999,-438.99214438,0.0001627,2]
[396486772,1764993363260,166.66,0.00015948,2]
[396486773,1764993399486,200.0,0.00015476,2]
[396486774,1764993478553,166.66,0.000147,2]
[396486775,1764993478742,166.66,0.0001501,2]
[396486776,1764993478941,166.66,0.00015319,2]
[396486777,1764993479142,166.66,0.00015629,2]
[396486778,1764993479342,166.66,0.00015938,2]
[396486779,1764993626152,698.55,0.00015429,2]
[396486780,1764993632736,6479.57377722,0.00015432,2]
[396486781,1764993632756,3037.02622278,0.00015432,2]
[396486782,1764993760011,200.0,0.00015435,2]
[396486783,1764993772871,725.03,0.00015441,2]
[396486786,1764993810216,331.7,0.00025,120]
[396486787,1764993866817,-177.63303833,0.00016027,2]
[396486788,1764993870196,-218.54231755,0.00016027,2]
[396486789,1764993872466,-223.11589934,0.00016027,2]
[396486790,1764993874091,-166.27444294,0.00016027,2]
[396486791,1764993876260,-151.46746794,0.00016027,2]
[396486792,1764993877863,-642.37841561,0.00016027,2]
[396486793,1764993879330,-337.33358921,0.00016027,2]
[396486794,1764993943908,191.628433,0.00015985,2]
[396486795,1764993963364,1919.96,0.00015495,2]
[396486796,1764994031814,7888.421567,0.00015367,2]
[396486797,1764994031834,2911.468433,0.00015367,2]
[396486802,1764994229562,1000.0,0.0001537,2]
[396486807,1764994231475,-179.51438616,0.00016066,2]
[396486808,1764994231484,-284.0,0.00016066,2]
[396486809,1764994231493,-225.56507546,0.00016107,2]
[396486810,1764994231502,-309.92053838,0.00016148,2]
[396486811,1764994231514,-1.17946162,0.00016148,2]
[396486812,1764994231523,-578.20924308,0.00016148,2]
[396486813,1764994231532,-500.0,0.00016166,2]
[396486814,1764994231541,-500.0,0.00016166,2]
[396486815,1764994231551,-347.88611749,0.00016166,2]
[396486816,1764994231559,-1200.0,0.00016169,2]
[396486817,1764994231569,-300.0,0.00016169,2]
[396486818,1764994231578,-13935.98391156,0.0001617,2]
[396486819,1764994231587,-161.78245403,0.0001617,2]
[396486820,1764994231596,-521.57125244,0.0001617,2]
[396486821,1764994231606,-1000.0,0.00016195,3]
[396486822,1764994231615,-150.0,0.000162,2]
[396486823,1764994231624,-150.0,0.000162,2]
[396486824,1764994231633,-150.0,0.000162,2]
[396486825,1764994231642,-150.0,0.000162,2]
[396486826,1764994231652,-150.0,0.000162,2]
[396486827,1764994231660,-1200.0,0.000162,2]
[396486828,1764994231669,-500.0,0.00016219,2]
[396486829,1764994231679,-500.0,0.00016247,2]
[396486830,1764994231688,-166.66,0.00016248,2]
[396486831,1764994231697,-1000.0,0.0001627,2]
[396486832,1764994231705,-9999.99,0.0001627,2]
[396486833,1764994231715,-150.99,0.0001627,2]
[396486834,1764994231724,-869.11,0.0001627,2]
[396486835,1764994231733,-999.99,0.0001627,2]
[396486836,1764994231742,-5147.1,0.0001627,2]
[396486838,1764994231751,-1540.48,0.0001627,2]
[396486840,1764994231760,-9585.56,0.0001627,2]
[396486842,1764994231769,-2705.36,0.0001627,2]
[396486844,1764994231778,-1196.89835049,0.0001627,2]
[396486846,1764994231790,-1339.65164951,0.0001627,2]
[396486847,1764994231799,-1192.27,0.0001627,2]
[396486848,1764994231813,-4591.76151499,0.0001627,2]
[396486849,1764994231823,-32273.4907088,0.0001627,2]
[396486850,1764994231859,-2302.61420706,0.0001627,2]